{"text_format":"3","workbook":"xlsx","n_sheets":5,"sheets":["Tukimuurit","Meluesteet","Käsitteet","ÄLÄ POISTA!","Käyttöohjeet"],"not_rendered":{"charts":3,"images":1,"macros":1,"external_links":1,"defined_names":3,"comments":2},"read":"whole","date_system":"1900"}

{"sheet":"Tukimuurit","index":0,"n_rows":9,"n_cols":27,"rows_kept":9,"merged":[[0,3,0,6],[1,8,1,9],[1,12,1,13],[2,3,2,6],[2,8,2,9],[2,12,2,13],[3,3,3,6],[3,8,3,9],[4,3,4,6],[5,3,5,6],[7,2,7,3],[7,4,7,5],[7,6,7,7],[7,8,7,9],[7,10,7,11],[7,12,7,13],[7,14,7,15],[7,16,7,18]]}
[{"$nulls":3},"Tukimuurien yleiskunto",{"$nulls":4},"Rakenteiden korjauskustannukset",{"$nulls":3},"Rakenteiden korjauskustannukset (0-5v)"]
["Käytössä sillantarkastuskäsikirjan mukainen kuntoarvioluokitus",{"$nulls":7},"Peruskorjaukset ",null,{"$f":"SUMIF(AA:AA,\"Peruskorjaus\", Z:Z)","v":0},null,"Peruskorjaukset",null,{"$f":"SUMIFS(Tukimuurit!Z:Z,Tukimuurit!R:R,\"0-5 v*\",Tukimuurit!AA:AA,\"Peruskorjaus*\")","v":0}]
[{"$nulls":8},"Ylläpitokorjaukset",null,{"$f":"SUMIF(AA:AA,\"Ylläpitokorjaus\", Z:Z)","v":0},null,"Ylläpitokorjaukset",null,{"$f":"SUMIFS(Tukimuurit!Z:Z,Tukimuurit!R:R,\"0-5 v*\",Tukimuurit!AA:AA,\"Ylläpitokorjaus*\")","v":0}]
[{"$nulls":8},"Uusiminen",null,{"$f":"SUMIF(AA:AA,\"Uusiminen\", Z:Z)","v":0}]
[]
[]
[]
["Nimi",null,"(C) Muurirakenne",null,"(E) Pinta-ja eristerakenne",null,"(G) Kaiteet",null,"(K) Muut varusteet ja laitteet",null,"Etualue",null,"Tausta-alue",null,"(L) Ympäristö",null,"Koko muurin yleiskunto",null,null,"Muurin pituus (m)","Näkyvän muurin korkeus (m)","Muurin kokonaiskorkeus (m)","Rakennetyyppi","Lisätietoja","Tulevat toimenpiteet","Kustannusarvio €","Seuraavan 10v aikana tarvittava toimenpide"]
[null,"Päivämäärä","Kunto-arvio     (0-4)","Korjauksen kiireellisyys","Kunto-arvio     (0-4)","Korjauksen kiireellisyys","Kunto-arvio     (0-4)","Korjauksen kiireellisyys","Kunto-arvio     (0-4)","Korjauksen kiireellisyys","Kunto-arvio     (0-4)","Korjauksen kiireellisyys","Kunto-arvio     (0-4)","Korjauksen kiireellisyys","Kunto-arvio     (0-4)","Korjauksen kiireellisyys","Kunto-arvio     (0-4)","Korjauksen kiireellisyys","Yleiskunto"]

{"sheet":"Meluesteet","index":1,"n_rows":24,"n_cols":27,"rows_kept":24,"merged":[[2,6,2,8],[2,9,2,11],[3,6,3,7],[4,6,4,7],[5,6,5,7],[14,5,14,7],[14,8,14,10],[15,5,15,6],[16,5,16,6],[17,5,17,6],[22,3,22,4],[22,5,22,6],[22,7,22,8],[22,9,22,10],[22,11,22,12],[22,13,22,20]]}
[]
["Käytössä sillantarkastuskäsikirjan mukainen kuntoarvioluokitus",null,"Meluesteiden yleiskunto: "]
[{"$nulls":6},"Rakenteiden korjauskustannukset",null,null,"Rakenteiden korjauskustannukset (0-5v)"]
[{"$nulls":6},"Peruskorjaukset ",null,{"$f":"SUMIF(AA:AA,\"Peruskorjaus\", Z:Z)","v":0},"Peruskorjaukset",null,{"$f":"SUMIFS(Meluesteet!Z:Z,O:O,\"0-5 v*\",Meluesteet!AA:AA,\"Peruskorjaus*\")","v":0}]
[{"$nulls":6},"Ylläpitokorjaukset",null,{"$f":"SUMIF(AA:AA,\"Ylläpitokorjaus\", Z:Z)","v":0},"Ylläpitokorjaukset",null,{"$f":"SUMIFS(Meluesteet!Z:Z,O:O,\"0-5 v*\",Meluesteet!AA:AA,\"Ylläpitokorjaus*\")","v":0}]
[{"$nulls":6},"Uusiminen",null,{"$f":"SUMIF(AA:AA,\"Uusiminen\", Z:Z)","v":0}]
{"$rows_empty":7}
[null,null,"Meluesteiden yleiskunto: "]
["Käytössä sillantarkastuskäsikirjan mukainen kuntoarvioluokitus",{"$nulls":4},"Rakenteiden korjauskustannukset",null,null,"Rakenteiden korjauskustannukset (0-5v)"]
[{"$nulls":5},"Peruskorjaukset ",null,{"$f":"SUMIF(AA:AA,\"Peruskorjaus\", Z:Z)","v":0},"Peruskorjaukset",null,{"$f":"SUMIFS(Meluesteet!Z:Z,O:O,\"0-5 v*\",Meluesteet!AA:AA,\"Peruskorjaus*\")","v":0}]
[{"$nulls":5},"Ylläpitokorjaukset",null,{"$f":"SUMIF(AA:AA,\"Ylläpitokorjaus\", Z:Z)","v":0},"Ylläpitokorjaukset",null,{"$f":"SUMIFS(Meluesteet!Z:Z,O:O,\"0-5 v*\",Meluesteet!AA:AA,\"Ylläpitokorjaus*\")","v":0}]
[{"$nulls":5},"Uusiminen",null,{"$f":"SUMIF(AA:AA,\"Uusiminen\", Z:Z)","v":0}]
[]
[]
[]
[]
["Nimi","Päivämäärä","Tapahtuma","Alusrakenne",null,"Ylärakenne",null,"Verhous",null,"Varusteet ja laitteet",null,"Ympäristö",null,"Koko meluesteen yleiskunto",{"$nulls":7},"Seinän pituus (m)","Näkyvän meluseinän korkeus (m)","Lisätietoja","Tulevat toimenpiteet","Kustannusarvio","Seuraavan 10v aikana tarvittava toimenpide"]
[{"$nulls":3},"Kunto-arvio     (0-4)","Korjauksen kiireellisyys","Kunto-arvio     (0-4)","Korjauksen kiireellisyys","Kunto-arvio     (0-4)","Korjauksen kiireellisyys","Kunto-arvio     (0-4)","Korjauksen kiireellisyys","Kunto-arvio     (0-4)","Korjauksen kiireellisyys","Kunto-arvio     (0-4)","Korjauksen kiireellisyys","Yleiskunto",{"$nulls":4},"Korjauksen kiireellisyys"]

{"sheet":"Käsitteet","index":2,"n_rows":7,"n_cols":3,"rows_kept":7,"merged":[[1,2,1,6],[2,2,2,6],[3,2,3,6],[4,2,4,6],[5,2,5,6]]}
["Käytössä sillantarkastuskäsikirjan mukainen kuntoarvioluokitus:",null,"Koko tukimuurin yleiskunnon arvioinnissa käytetään seuraavia ajatusmalleja:"]
["0 – Uusi tai lähes uuden veroinen päärakenneosa/rakenneosa",null,"UUSI = Uusi tai lähes uuden veroinen tukimuuri"]
["1 – Hyväkuntoinen päärakenneosa; normaalia kulumista ja ikääntymistä, mutta toi\u0002mii hyvin. Ei varsinaisia vaurioita tai vauriot ovat lieviä tai laajuudeltaan vähäisiä",null,"HYVÄ = Hyväkuntoinen tukimuuri; normaalia kulumista ja ikääntymistä, mutta toimii hyvin. Voidaan harkita tiettyjen rakenneosien korjausta."]
["2 –  Rakenteissa on selvästi havaittavia puutteita ja vaurioita, jotka eivät kuitenkaan vielä rajoita rakenteiden normaalia käyttöä. Rakenneosan korjaamista esitetään yleensä ennakoivana tai paikallisena toimenpiteenä",null,"VÄLTTÄVÄ = Tyydyttäväkuntoinen tukimuuri; on jo puutteita ja vaurioita, kuten rapautumista, halkeamia tai ruostumista. Tukimuurin rakenneosakohtaisia korjauksia voidaan harkita tai korjausta voidaan vielä siirtää."]
["3 – Selvästi havaittavia korjausta vaativia vaurioita",null,"HUONO = Huonokuntoinen tukimuuri; useita selvästi havaittavia korjausta vaativia vaurioita tai jokin yksittäinen kokonaisuuden kannalta vakava vaurio."]
["4 – Vauriot heikentävät jo selvästi rakenneosan kantavuutta ja/tai vaarantavat lii\u0002kenneturvallisuutta. Rakenneosa on välttämättä korjattava tai uusittava",null,"ERITTÄIN HUONO = Erittäin huonokuntoinen tukimuuri; tukimuuri on täydellisen korjauksen tai uusimisen tarpeessa. Kunto ei ole hyväksyttävissä."]
["  – ei ole tietoa onko rakenneosaa/rakenneosaa ei ole tukimuurissa"]

{"sheet":"ÄLÄ POISTA!","index":3,"n_rows":32,"n_cols":14,"rows_kept":32}
["Nimi","Rakennetyyppi","kuntoarvio","Korjauksen kiirellisyys","Rakenteen yleiskunto",null,null,"Rakennetyyppi",null,"Seuraavan 10v aikana tarvittava toimenpide"]
[null,"betoniharkkoinen muuri",null,"HETI","Uusi",null,null,"Melukaide",null,"Ylläpitokorjaus",{"$nulls":3},"UUSI = Uusi tai lähes uuden veroinen tukimuuri."]
[null,"betoninen kulmatukimuuri",null,"0-5 v","Hyvä",null,null,"Meluseinä",null,"Peruskorjaus",{"$nulls":3},"HYVÄ = Hyväkuntoinen tukimuuri; normaalia kulumista ja ikääntymistä, mutta toimii hyvin. Voidaan "]
[null,"betoninen muuri",null,"5-10 v","Välttävä",null,null,"Kivikori",null,"Uusiminen",{"$nulls":3},"harkita tiettyjen rakenneosien korjausta."]
[null,"betoninen rantamuuri",0,"10-20 v","Huono",null,null,"Meluaita",{"$nulls":5},"VÄLTTÄVÄ = Tyydyttäväkuntoinen tukimuuri; on jo puutteita ja vaurioita, kuten rapautumista, "]
[null,"betoninen tukimuuri",1,"-","Erittäin huono",null,null,"Meluvalli",{"$nulls":5},"halkeamia tai ruostumista. Tukimuurin rakenneosakohtaisia korjauksia voidaan harkita tai korjausta "]
[null,"Kivinen kori",2,{"$nulls":4},"Läpinäkyvä melusuojaus"]
[null,"Kivinen kylmämuuri",3,{"$nulls":10},"HUONO = Huonokuntoinen tukimuuri; useita selvästi havaittavia korjausta vaativia vaurioita tai jokin "]
[null,"Kivinen kylmämuuri",4,{"$nulls":10},"yksittäinen kokonaisuuden kannalta vakava vaurio."]
[null,"kivinen laastimuuri","-",{"$nulls":3},"Tukimuurit",{"$nulls":6},"ERITTÄIN HUONO = Erittäin huonokuntoinen tukimuuri; tukimuuri on täydellisen korjauksen tai "]
[null,"Kivinen muuri",{"$nulls":4},"Kuntoluokka","Määrä kpl","%",{"$nulls":4},"uusimisen tarpeessa. Kunto ei ole hyväksyttävissä."]
[null,"Teräsponttiseinä",{"$nulls":4},"Uusi",{"$f":"COUNTIF(Tukimuurit!O:S,\"Uusi\")","v":0},{"$f":"H12/H17","v":{"$error":"#DIV/0!"}}]
[null,"tieto puuttuu",{"$nulls":4},"Hyvä",{"$f":"COUNTIF(Tukimuurit!O:S,\"Hyvä\")","v":0},{"$f":"H13/H17","v":{"$error":"#DIV/0!"}}]
[{"$nulls":6},"Välttävä",{"$f":"COUNTIF(Tukimuurit!O:S,\"Välttävä\")","v":0},{"$f":"H14/H17","v":{"$error":"#DIV/0!"}}]
[{"$nulls":6},"Huono",{"$f":"COUNTIF(Tukimuurit!O:S,\"Huono\")","v":0},{"$f":"H15/H17","v":{"$error":"#DIV/0!"}}]
[{"$nulls":6},"Erittäin huono",{"$f":"COUNTIF(Tukimuurit!O:S,\"Erittäin huono\")","v":0},{"$f":"H16/H17","v":{"$error":"#DIV/0!"}}]
["Älä poista on suojattu salasanalla, jos taulukkoon haluaa tehdä muutoksia salasana on: 1234",{"$nulls":6},{"$f":"SUM(H12:H16)","v":0},{"$f":"SUM(I12:I16)","v":{"$error":"#DIV/0!"}}]
[]
["Tässä taulukossa on tukimuurien ja meluesteiden alasvetovalikoiden tietoja ja luettteloita, tätä taulukkoa ei saa poistaa ",{"$nulls":5},"Meluesteet"]
[{"$nulls":6},"Kuntoluokka","Määrä kpl","%"]
[{"$nulls":6},"Uusi",{"$f":"COUNTIF(Meluesteet!O:S,\"Uusi\")","v":0},{"$f":"H21/H26","v":{"$error":"#DIV/0!"}}]
[{"$nulls":6},"Hyvä",{"$f":"COUNTIF(Meluesteet!O:S,\"Hyvä\")","v":0},{"$f":"H22/H26","v":{"$error":"#DIV/0!"}}]
[{"$nulls":6},"Välttävä",{"$f":"COUNTIF(Meluesteet!O:S,\"Välttävä\")","v":0},{"$f":"H23/H26","v":{"$error":"#DIV/0!"}}]
[{"$nulls":6},"Huono",{"$f":"COUNTIF(Meluesteet!O:S,\"Huono\")","v":0},{"$f":"H24/H26","v":{"$error":"#DIV/0!"}}]
[{"$nulls":6},"Erittäin huono",{"$f":"COUNTIF(Meluesteet!O:S,\"Erittäin huono\")","v":0},{"$f":"H25/H26","v":{"$error":"#DIV/0!"}}]
[null,"Päärakenneosa ",{"$nulls":5},{"$f":"SUM(H21:H25)","v":0},{"$f":"SUM(I21:I25)","v":{"$error":"#DIV/0!"}}]
[]
[null,"C: Muurirakenne","Rakenneosaryhmä"]
[null,"E:Pinta-ja eristerakenteet","Muurirakenne"]
[null,"G:Kaiteet","Etualue"]
[null,"K:Muut varusteet ja laitteet","Tausta-alue"]
[null,"L: Ympäristö","Varusteet ja laitteet"]

{"sheet":"Käyttöohjeet","index":4,"n_rows":0,"n_cols":0,"rows_kept":0}